fUSD/lending_fUSD_20240625
["ID","MTS","AMOUNT","RATE_DAILY","PERIOD"]
[330388423,1719341434998,-500.0,0.00019178,2]
[330388424,1719341435008,-500.0,0.00019178,2]
[330388425,1719341435017,-500.0,0.00019178,2]
[330388426,1719341435027,-1179.49,0.00019178,2]
[330388427,1719341435036,-572.88,0.00019178,2]
[330388428,1719341435046,-500.0,0.00019178,2]
[330388429,1719341435056,-500.0,0.00019178,2]
[330388430,1719341435065,-1262.1,0.00019178,2]
[330388431,1719341435075,-711.95,0.00019178,2]
[330388432,1719341435085,-500.0,0.00019178,2]
[330388433,1719341435094,-500.0,0.00019178,2]
[330388434,1719341435104,-500.0,0.00019178,2]
[330388435,1719341435113,-500.0,0.00019178,2]
[330388436,1719341435123,-1230.22,0.00019178,2]
[330388437,1719341435133,-500.0,0.00019178,2]
[330388438,1719341435142,-500.0,0.00019178,2]
[330388439,1719341435152,-500.0,0.00019178,2]
[330388440,1719341435162,-500.0,0.00019178,2]
[330388441,1719341435172,-500.0,0.00019178,2]
[330388442,1719341435182,-500.0,0.00019178,2]
[330388443,1719341435192,-500.0,0.00019178,2]
[330388444,1719341435202,-500.0,0.00019178,2]
[330388445,1719341435212,-500.0,0.00019178,2]
[330388446,1719341435221,-549.53,0.00019178,2]
[330388447,1719341435231,-500.0,0.00019178,2]
[330388448,1719341435241,-500.0,0.00019178,2]
[330388449,1719341435254,-500.0,0.00019178,2]
[330388450,1719341435277,-500.0,0.00019178,2]
[330388451,1719341435287,-500.0,0.00019178,2]
[330388452,1719341435297,-500.0,0.00019178,2]
[330388453,1719341435310,-306.10616229,0.00019178,2]
[330388454,1719341435336,-193.89383771,0.00019178,2]
[330388455,1719341435347,-64.98616229,0.00019178,2]
[330388456,1719341435576,-576.69383771,0.00019178,2]
[330388457,1719341435586,-990.91,0.00019178,2]
[330388458,1719341435596,-500.0,0.00019178,2]
[330388459,1719341435605,-500.0,0.00019178,2]
[330388460,1719341435616,-500.0,0.00019178,2]
[330388461,1719341435625,-1027.32,0.00019178,2]
[330388462,1719341435636,-907.63,0.00019178,2]
[330388463,1719341435645,-500.0,0.00019178,2]
[330388464,1719341435654,-500.0,0.00019178,2]
[330388465,1719341435664,-500.0,0.00019178,2]
[330388466,1719341435674,-983.23,0.00019178,2]
[330388467,1719341435684,-2614.75,0.00019178,2]
[330388468,1719341435693,-500.0,0.00019178,2]
[330388469,1719341435704,-500.0,0.00019178,2]
[330388470,1719341435713,-500.0,0.00019178,2]
[330388471,1719341435723,-513.97,0.00019178,2]
[330388472,1719341435732,-500.0,0.00019178,2]
[330388473,1719341435742,-1237.57,0.00019178,2]
[330388474,1719341435751,-658.97,0.00019178,2]
[330388475,1719341435779,-512.66,0.00019178,2]
[330388476,1719341435790,-1093.9,0.00019178,2]
[330388477,1719341435799,-500.0,0.00019178,2]
[330388478,1719341435809,-500.0,0.00019178,2]
[330388479,1719341435818,-500.0,0.00019178,2]
[330388480,1719341435828,-500.0,0.00019178,2]
[330388481,1719341435837,-500.0,0.00019178,2]
[330388482,1719341435846,-500.0,0.00019178,2]
[330388483,1719341435857,-500.0,0.00019178,2]
[330388484,1719341435866,-1340.08,0.00019178,2]
[330388485,1719341435876,-1701.72,0.00019178,2]
[330388486,1719341435886,-500.0,0.00019178,2]
[330388487,1719341435895,-500.0,0.00019178,2]
[330388488,1719341435905,-500.0,0.00019178,2]
[330388489,1719341435915,-1435.21,0.00019178,2]
[330388490,1719341435925,-500.0,0.00019178,2]
[330388491,1719341435935,-802.4,0.00019178,2]
[330388492,1719341435945,-547.23,0.00019178,2]
[330388493,1719341435955,-932.88,0.00019178,2]
[330388494,1719341435964,-500.0,0.00019178,2]
[330388495,1719341435974,-644.91,0.00019178,2]
[330388496,1719341435983,-529.39,0.00019178,2]
[330388497,1719341435993,-500.0,0.00019178,2]
[330388498,1719341436002,-25425.61,0.00019178,2]
[330388499,1719341436012,-998.59,0.00019178,2]
[330388500,1719341436022,-642.7,0.00019178,2]
[330388501,1719341436031,-762.71,0.00019178,2]
[330388502,1719341436041,-561.32,0.00019178,2]
[330388503,1719341436050,-500.0,0.00019178,2]
[330388504,1719341436060,-500.0,0.00019178,2]
[330388505,1719341436070,-500.0,0.00019178,2]
[330388506,1719341436079,-1487.92,0.00019178,2]
[330388507,1719341436089,-542.31,0.00019178,2]
[330388508,1719341436099,-500.0,0.00019178,2]
[330388509,1719341436108,-758.69,0.00019178,2]
[330388510,1719341436117,-500.0,0.00019178,2]
[330388511,1719341436126,-500.0,0.00019178,2]
[330388512,1719341436136,-500.0,0.00019178,2]
[330388513,1719341436145,-1110.84,0.00019178,2]
[330388514,1719341436155,-3168.59,0.00019178,2]
[330388515,1719341436165,-284.98222876,0.00019178,2]
[330388516,1719341436174,-500.0,0.00019178,2]
[330388517,1719341436184,-500.0,0.00019178,2]
[330388518,1719341436193,-1181.42,0.00019178,2]
[330388519,1719341436203,-878.73,0.00019178,2]
[330388520,1719341436212,-500.0,0.00019178,2]
[330388521,1719341436222,-500.0,0.00019178,2]
[330388522,1719341436231,-1125.56,0.00019178,2]
[330388523,1719341436241,-545.68275725,0.00019178,2]
[330388524,1719341436251,-500.0,0.00019178,2]
[330388525,1719341436272,-500.0,0.00019178,2]
[330388526,1719341436287,-707.51,0.00019178,2]
[330388527,1719341436298,-2741.15,0.00019178,2]
[330388528,1719341436310,-995.59,0.00019178,2]
[330388529,1719341436319,-1334.8,0.00019178,2]
[330388530,1719341436329,-500.0,0.00019178,2]
[330388531,1719341436339,-500.0,0.00019178,2]
[330388532,1719341436349,-649.41,0.00019178,2]
[330388533,1719341436358,-500.0,0.00019178,2]
[330388534,1719341436368,-846.97,0.00019178,2]
[330388535,1719341436377,-509.95,0.00019178,2]
[330388536,1719341436390,-715.24,0.00019178,2]
[330388537,1719341436400,-500.0,0.00019178,2]
[330388538,1719341436410,-500.0,0.00019178,2]
[330388539,1719341436419,-727.45,0.00019178,2]
[330388540,1719341436428,-1320.73,0.00019178,2]
[330388541,1719341436438,-500.0,0.00019178,2]
[330388542,1719341436449,-500.0,0.00019178,2]
[330388543,1719341436458,-500.0,0.00019178,2]
[330388544,1719341436468,-524.55,0.00019178,2]
[330388545,1719341436477,-1580.22,0.00019178,2]
[330388546,1719341436487,-500.0,0.00019178,2]
[330388547,1719341436497,-1101.31,0.00019178,2]
[330388548,1719341436507,-500.0,0.00019178,2]
[330388549,1719341436516,-500.0,0.00019178,2]
[330388550,1719341436526,-698.76,0.00019178,2]
[330388551,1719341436536,-1995.95,0.00019178,2]
[330388552,1719341436546,-577.67,0.00019178,2]
[330388553,1719341436555,-500.0,0.00019178,2]
[330388554,1719341436564,-853.81,0.00019178,2]
[330388555,1719341436574,-744.26,0.00019178,2]
[330388556,1719341436583,-500.0,0.00019178,2]
[330388557,1719341436593,-1189.92,0.00019178,2]
[330388558,1719341436602,-1157.09,0.00019178,2]
[330388559,1719341436612,-500.0,0.00019178,2]
[330388560,1719341436621,-1548.81,0.00019178,2]
[330388561,1719341436631,-500.0,0.00019178,2]
[330388562,1719341436641,-5312.42,0.00019178,2]
[330388563,1719341436650,-1132.87,0.00019178,2]
[330388564,1719341436660,-500.0,0.00019178,2]
[330388565,1719341436670,-2206.52,0.00019178,2]
[330388566,1719341436681,-613.1887448,0.00019178,2]
[330388567,1719341436691,-903.22,0.00019178,2]
[330388568,1719341436702,-500.0,0.00019178,2]
[330388569,1719341436711,-500.0,0.00019178,2]
[330388570,1719341436721,-1562.39,0.00019178,2]
[330388571,1719341436731,-500.0,0.00019178,2]
[330388572,1719341436740,-500.0,0.00019178,2]
[330388573,1719341436750,-500.0,0.00019178,2]
[330388574,1719341436760,-598.15,0.00019178,2]
[330388575,1719341436787,-500.0,0.00019178,2]
[330388576,1719341436796,-500.0,0.00019178,2]
[330388577,1719341436805,-500.0,0.00019178,2]
[330388578,1719341436815,-598.81,0.00019178,2]
[330388579,1719341436824,-500.0,0.00019178,2]
[330388580,1719341436834,-626.31,0.00019178,2]
[330388581,1719341436843,-3546.96,0.00019178,2]
[330388582,1719341436853,-1901.21,0.00019178,2]
[330388583,1719341436863,-1044.1,0.00019178,2]
[330388584,1719341436873,-500.0,0.00019178,2]
[330388585,1719341436883,-3046.66,0.00019178,2]
[330388586,1719341436892,-500.0,0.00019178,2]
[330388587,1719341436902,-964.04,0.00019178,2]
[330388588,1719341436911,-1684.38,0.00019178,2]
[330388589,1719341436921,-500.0,0.00019178,2]
[330388590,1719341436931,-1825.01,0.00019178,2]
[330388591,1719341436940,-500.0,0.00019178,2]
[330388592,1719341436951,-500.0,0.00019178,2]
[330388593,1719341436960,-878.68,0.00019178,2]
[330388594,1719341436970,-500.0,0.00019178,2]
[330388595,1719341436979,-1863.5,0.00019178,2]
[330388596,1719341436989,-2077.31,0.00019178,2]
[330388597,1719341436999,-500.0,0.00019178,2]
[330388598,1719341437009,-3134.22,0.00019178,2]
[330388599,1719341437019,-500.0,0.00019178,2]
[330388600,1719341437029,-553.87,0.00019178,2]
[330388601,1719341437039,-500.0,0.00019178,2]
[330388602,1719341437049,-500.0,0.00019178,2]
[330388603,1719341437058,-726.88,0.00019178,2]
[330388604,1719341437068,-500.0,0.00019178,2]
[330388605,1719341437078,-500.0,0.00019178,2]
[330388606,1719341437088,-500.0,0.00019178,2]
[330388607,1719341437099,-1969.62,0.00019178,2]
[330388608,1719341437109,-1625.27,0.00019178,2]
[330388609,1719341437119,-1117.51,0.00019178,2]
[330388610,1719341437129,-1112.83,0.00019178,2]
[330388611,1719341437140,-1983.46,0.00019178,2]
[330388612,1719341437149,-973.4,0.00019178,2]
[330388613,1719341437160,-838.17,0.00019178,2]
[330388614,1719341437170,-500.0,0.00019178,2]
[330388615,1719341437180,-500.0,0.00019178,2]
[330388616,1719341437190,-500.0,0.00019178,2]
[330388617,1719341437200,-1770.96,0.00019178,2]
[330388618,1719341437210,-500.0,0.00019178,2]
[330388619,1719341437220,-500.0,0.00019178,2]
[330388620,1719341437230,-828.23,0.00019178,2]
[330388621,1719341437240,-666.04,0.00019178,2]
[330388622,1719341437250,-500.0,0.00019178,2]
[330388623,1719341437260,-1021.79,0.00019178,2]
[330388624,1719341437286,-570.26,0.00019178,2]
[330388625,1719341437298,-1808.08,0.00019178,2]
[330388626,1719341437315,-500.0,0.00019178,2]
[330388627,1719341437325,-884.75,0.00019178,2]
[330388628,1719341437335,-858.82,0.00019178,2]
[330388629,1719341437346,-1410.85,0.00019178,2]
[330388630,1719341437355,-741.81,0.00019178,2]
[330388631,1719341437365,-500.0,0.00019178,2]
[330388632,1719341437466,-500.0,0.00019178,2]
[330388633,1719341437478,-2437.27,0.00019178,2]
[330388634,1719341437488,-1584.39,0.00019178,2]
[330388635,1719341437499,-500.0,0.00019178,2]
[330388636,1719341437509,-500.0,0.00019178,2]
[330388637,1719341437519,-500.0,0.00019178,2]
[330388638,1719341437528,-836.39,0.00019178,2]
[330388639,1719341437539,-500.0,0.00019178,2]
[330388640,1719341437548,-500.0,0.00019178,2]
[330388641,1719341437558,-691.83,0.00019178,2]
[330388642,1719341437568,-861.04,0.00019178,2]
[330388643,1719341437579,-505.9225492,0.00019178,2]
[330388644,1719341437590,-511.56,0.00019178,2]
[330388645,1719341437600,-500.0,0.00019178,2]
[330388646,1719341437610,-545.36,0.00019178,2]
[330388647,1719341437621,-500.0,0.00019178,2]
[330388648,1719341437632,-500.0,0.00019178,2]
[330388649,1719341437642,-500.0,0.00019178,2]
[330388650,1719341437652,-500.0,0.00019178,2]
[330388651,1719341437662,-636.33,0.00019178,2]
[330388652,1719341437673,-500.0,0.00019178,2]
[330388653,1719341437684,-844.05,0.00019178,2]
[330388654,1719341437694,-1751.61,0.00019178,2]
[330388655,1719341437704,-500.0,0.00019178,2]
[330388656,1719341437714,-500.0,0.00019178,2]
[330388657,1719341437723,-500.0,0.00019178,2]
[330388658,1719341437733,-695.67,0.00019178,2]
[330388659,1719341437743,-675.07,0.00019178,2]
[330388660,1719341437753,-500.0,0.00019178,2]
[330388661,1719341437762,-500.0,0.00019178,2]
[330388662,1719341437772,-2854.73,0.00019178,2]
[330388663,1719341437795,-500.0,0.00019178,2]
[330388664,1719341437805,-500.0,0.00019178,2]
[330388665,1719341437818,-786.72,0.00019178,2]
[330388666,1719341437827,-1784.84,0.00019178,2]
[330388667,1719341437836,-500.0,0.00019178,2]
[330388668,1719341437845,-1807.49,0.00019178,2]
[330388669,1719341437855,-517.6,0.00019178,2]
[330388670,1719341437865,-500.0,0.00019178,2]
[330388671,1719341437876,-1195.19,0.00019178,2]
[330388672,1719341437886,-950.84,0.00019178,2]
[330388673,1719341437896,-1322.82,0.00019178,2]
[330388674,1719341437906,-164.7242717,0.00019178,2]
[330388675,1719341437916,-500.0,0.00019178,2]
[330388676,1719341437925,-5597.34,0.00019178,2]
[330388677,1719341437936,-1607.08,0.00019178,2]
[330388678,1719341437945,-500.0,0.00019178,2]
[330388679,1719341437955,-500.0,0.00019178,2]
[330388680,1719341437965,-670.36,0.00019178,2]
[330388681,1719341437975,-500.0,0.00019178,2]
[330388682,1719341437984,-500.0,0.00019178,2]
[330388683,1719341437995,-209.52329919,0.00019178,2]
[330388684,1719341438004,-984.86,0.00019178,2]
[330388685,1719341438014,-500.0,0.00019178,2]
[330388686,1719341438024,-500.0,0.00019178,2]
[330388687,1719341438033,-1654.85,0.00019178,2]
[330388688,1719341438043,-500.0,0.00019178,2]
[330388689,1719341438053,-2843.59,0.00019178,2]
[330388690,1719341438063,-500.0,0.00019178,2]
[330388691,1719341438073,-10639.0,0.00019178,2]
[330388692,1719341438082,-1139.79,0.00019178,2]
[330388693,1719341438092,-500.0,0.00019178,2]
[330388694,1719341438102,-500.0,0.00019178,2]
[330388695,1719341438111,-1136.53,0.00019178,2]
[330388696,1719341438121,-746.82,0.00019178,2]
[330388697,1719341438131,-950.4,0.00019178,2]
[330388698,1719341438141,-1321.74,0.00019178,2]
[330388699,1719341438151,-500.0,0.00019178,2]
[330388700,1719341438161,-500.0,0.00019178,2]
[330388701,1719341438171,-500.0,0.00019178,2]
[330388702,1719341438181,-500.0,0.00019178,2]
[330388703,1719341438191,-500.0,0.00019178,2]
[330388704,1719341438200,-786.62,0.00019178,2]
[330388705,1719341438211,-524.71,0.00019178,2]
[330388706,1719341438221,-733.08,0.00019178,2]
[330388707,1719341438230,-1973.06,0.00019178,2]
[330388708,1719341438240,-1447.11,0.00019178,2]
[330388709,1719341438250,-500.0,0.00019178,2]
[330388710,1719341438260,-598.48,0.00019178,2]
[330388711,1719341438270,-500.0,0.00019178,2]
[330388712,1719341438287,-1373.91,0.00019178,2]
[330388713,1719341438305,-500.0,0.00019178,2]
[330388714,1719341438316,-933.28,0.00019178,2]
[330388715,1719341438326,-500.0,0.00019178,2]
[330388716,1719341438336,-723.8,0.00019178,2]
[330388717,1719341438348,-500.0,0.00019178,2]
[330388718,1719341438358,-500.0,0.00019178,2]
[330388719,1719341438368,-500.0,0.00019178,2]
[330388720,1719341438379,-500.0,0.00019178,2]
[330388721,1719341438389,-1817.02,0.00019178,2]
[330388722,1719341438398,-614.94,0.00019178,2]
[330388723,1719341438408,-413.11709348,0.00019178,2]
[330388724,1719341438417,-500.0,0.00019178,2]
[330388725,1719341438427,-500.0,0.00019178,2]
[330388726,1719341438437,-207.20773158,0.00019178,2]
[330388727,1719341438446,-2043.65,0.00019178,2]
[330388728,1719341438456,-500.0,0.00019178,2]
[330388729,1719341438466,-834.58,0.00019178,2]
[330388730,1719341438477,-566.1,0.00019178,2]
[330388731,1719341438487,-500.0,0.00019178,2]
[330388732,1719341438496,-500.0,0.00019178,2]
[330388733,1719341438507,-2192.69,0.00019178,2]
[330388735,1719341438517,-516.4,0.00019178,2]
[330388737,1719341438533,-1394.88,0.00019178,2]
[330388739,1719341438548,-500.0,0.00019178,2]
[330388740,1719341438558,-1425.56,0.00019178,2]
[330388741,1719341438568,-500.0,0.00019178,2]
[330388742,1719341438579,-500.0,0.00019178,2]
[330388743,1719341438588,-701.14,0.00019178,2]
[330388744,1719341438597,-1443.46,0.00019178,2]
[330388745,1719341438608,-500.0,0.00019178,2]
[330388746,1719341438619,-500.0,0.00019178,2]
[330388747,1719341438629,-500.0,0.00019178,2]
[330388748,1719341438640,-500.0,0.00019178,2]
[330388749,1719341438651,-500.0,0.00019178,2]
[330388750,1719341438661,-712.89,0.00019178,2]
[330388751,1719341438670,-1312.41,0.00019178,2]
[330388752,1719341438684,-1496.59,0.00019178,2]
[330388753,1719341438694,-1758.8,0.00019178,2]
[330388754,1719341438704,-500.0,0.00019178,2]
[330388755,1719341438714,-303.80253833,0.00019178,2]
[330388756,1719341438724,-500.0,0.00019178,2]
[330388757,1719341438734,-500.0,0.00019178,2]
[330388758,1719341438744,-956.96,0.00019178,2]
[330388759,1719341438754,-500.0,0.00019178,2]
[330388760,1719341438763,-2830.12,0.00019178,2]
[330388761,1719341438773,-500.0,0.00019178,2]
[330388762,1719341438794,-1979.72,0.00019178,2]
[330388763,1719341438804,-500.0,0.00019178,2]
[330388764,1719341438814,-728.04,0.00019178,2]
[330388765,1719341438824,-1120.33,0.00019178,2]
[330388766,1719341438835,-500.0,0.00019178,2]
[330388767,1719341438845,-500.0,0.00019178,2]
[330388768,1719341438855,-3832.57,0.00019178,2]
[330388769,1719341438866,-3005.15,0.00019178,2]
[330388770,1719341438876,-888.54,0.00019178,2]
[330388771,1719341438887,-500.0,0.00019178,2]
[330388772,1719341438897,-500.0,0.00019178,2]
[330388773,1719341438907,-500.0,0.00019178,2]
[330388774,1719341438918,-594.23,0.00019178,2]
[330388775,1719341438929,-1361.59,0.00019178,2]
[330388776,1719341438940,-500.0,0.00019178,2]
[330388777,1719341438950,-1216.88,0.00019178,2]
[330388778,1719341438960,-734.7,0.00019178,2]
[330388779,1719341438970,-503.5,0.00019178,2]
[330388780,1719341438980,-1572.89,0.00019178,2]
[330388781,1719341438990,-3086.64,0.00019178,2]
[330388782,1719341439001,-580.23659941,0.00019178,2]
[330388783,1719341439011,-500.0,0.00019178,2]
[330388784,1719341439022,-2026.2,0.00019178,2]
[330388785,1719341439045,-500.86,0.00019178,2]
[330388786,1719341439055,-500.0,0.00019178,2]
[330388787,1719341439066,-1485.65,0.00019178,2]
[330388788,1719341439076,-928.41,0.00019178,2]
[330388789,1719341439086,-1300.31,0.00019178,2]
[330388790,1719341439096,-500.0,0.00019178,2]
[330388791,1719341439106,-1265.63,0.00019178,2]
[330388792,1719341439116,-595.24,0.00019178,2]
[330388793,1719341439126,-500.0,0.00019178,2]
[330388794,1719341439138,-500.0,0.00019178,2]
[330388795,1719341439150,-539.74948828,0.00019178,2]
[330388796,1719341439160,-1836.7,0.00019178,2]
[330388797,1719341439170,-993.16,0.00019178,2]
[330388798,1719341439180,-500.0,0.00019178,2]
[330388799,1719341439191,-3641.99,0.00019178,2]
[330388800,1719341439203,-500.0,0.00019178,2]
[330388801,1719341439214,-500.0,0.00019178,2]
[330388802,1719341439225,-574.09234597,0.00019178,2]
[330388803,1719341439236,-500.0,0.00019178,2]
[330388804,1719341439247,-1322.05,0.00019178,2]
[330388805,1719341439258,-939.84,0.00019178,2]
[330388806,1719341439269,-500.0,0.00019178,2]
[330388807,1719341439284,-500.0,0.00019178,2]
[330388808,1719341439301,-4436.62,0.00019178,2]
[330388809,1719341439314,-975.29,0.00019178,2]
[330388810,1719341439325,-910.46,0.00019178,2]
[330388811,1719341439336,-500.0,0.00019178,2]
[330388812,1719341439346,-500.0,0.00019178,2]
[330388813,1719341439356,-500.0,0.00019178,2]
[330388814,1719341439367,-1107.45,0.00019178,2]
[330388815,1719341439378,-500.0,0.00019178,2]
[330388816,1719341439390,-500.0,0.00019178,2]
[330388817,1719341439401,-1946.83,0.00019178,2]
[330388818,1719341439411,-500.0,0.00019178,2]
[330388819,1719341439422,-500.0,0.00019178,2]
[330388820,1719341439432,-572.63,0.00019178,2]
[330388821,1719341439442,-747.78,0.00019178,2]
[330388822,1719341439452,-500.0,0.00019178,2]
[330388823,1719341439464,-500.0,0.00019178,2]
[330388824,1719341439474,-866.48,0.00019178,2]
[330388825,1719341439484,-630.84,0.00019178,2]
[330388826,1719341439494,-1041.39,0.00019178,2]
[330388827,1719341439505,-683.31,0.00019178,2]
[330388828,1719341439516,-1015.88,0.00019178,2]
[330388829,1719341439526,-1006.82,0.00019178,2]
[330388830,1719341439549,-870.99,0.00019178,2]
[330388831,1719341439558,-500.0,0.00019178,2]
[330388832,1719341439568,-500.0,0.00019178,2]
[330388833,1719341439578,-500.0,0.00019178,2]
[330388834,1719341439588,-500.0,0.00019178,2]
[330388835,1719341439598,-500.0,0.00019178,2]
[330388836,1719341439608,-549.18,0.00019178,2]
[330388837,1719341439618,-500.0,0.00019178,2]
[330388838,1719341439628,-15583.75,0.00019178,2]
[330388839,1719341439638,-1756.68,0.00019178,2]
[330388840,1719341439649,-565.0,0.00019178,2]
[330388841,1719341439659,-791.94,0.00019178,2]
[330388842,1719341439668,-500.0,0.00019178,2]
[330388843,1719341439680,-500.0,0.00019178,2]
[330388844,1719341439690,-550.0,0.00019178,2]
[330388845,1719341439700,-500.0,0.00019178,2]
[330388846,1719341439710,-684.68,0.00019178,2]
[330388847,1719341439720,-500.0,0.00019178,2]
[330388848,1719341439729,-500.0,0.00019178,2]
[330388849,1719341439739,-500.0,0.00019178,2]
[330388850,1719341439749,-500.0,0.00019178,2]
[330388851,1719341439759,-500.0,0.00019178,2]
[330388852,1719341439768,-946.77,0.00019178,2]
[330388853,1719341439778,-586.37,0.00019178,2]
[330388854,1719341439799,-602.26,0.00019178,2]
[330388855,1719341439809,-1173.68,0.00019178,2]
[330388856,1719341439819,-991.74,0.00019178,2]
[330388857,1719341439828,-901.38,0.00019178,2]
[330388858,1719341439838,-575.09,0.00019178,2]
[330388859,1719341439847,-2187.03,0.00019178,2]
[330388860,1719341439857,-500.0,0.00019178,2]
[330388861,1719341439867,-500.0,0.00019178,2]
[330388862,1719341439877,-1024.17,0.00019178,2]
[330388863,1719341439887,-500.0,0.00019178,2]
[330388864,1719341439897,-1181.54,0.00019178,2]
[330388865,1719341439907,-627.89,0.00019178,2]
[330388866,1719341439917,-500.0,0.00019178,2]
[330388867,1719341439928,-500.0,0.00019178,2]
[330388868,1719341439938,-500.0,0.00019178,2]
[330388869,1719341439949,-545.64,0.00019178,2]
[330388870,1719341439958,-500.0,0.00019178,2]
[330388872,1719341439968,-500.0,0.00019178,2]
[330388875,1719341439978,-500.0,0.00019178,2]
[330388878,1719341439988,-500.0,0.00019178,2]
[330388880,1719341439998,-2021.33,0.00019178,2]
[330388884,1719341440008,-500.0,0.00019178,2]
[330388887,1719341440018,-500.0,0.00019178,2]
[330388890,1719341440034,-1183.47,0.00019178,2]
[330388893,1719341440044,-2497.38,0.00019178,2]
[330388895,1719341440054,-500.0,0.00019178,2]
[330388897,1719341440064,-500.0,0.00019178,2]
[330388899,1719341440074,-500.0,0.00019178,2]
[330388901,1719341440084,-250.0,0.00019178,2]
[330388903,1719341440094,-1619.66,0.00019178,2]
[330388905,1719341440104,-1123.47,0.00019178,2]
[330388907,1719341440114,-500.0,0.00019178,2]
[330388909,1719341440124,-2402.49,0.00019178,2]
[330388911,1719341440134,-1080.82,0.00019178,2]
[330388913,1719341440144,-871.39,0.00019178,2]
[330388915,1719341440154,-734.5,0.00019178,2]
[330388916,1719341440164,-500.0,0.00019178,2]
[330388918,1719341440174,-544.78,0.00019178,2]
[330388920,1719341440184,-1864.58,0.00019178,2]
[330388922,1719341440194,-500.0,0.00019178,2]
[330388924,1719341440204,-500.0,0.00019178,2]
[330388926,1719341440214,-500.0,0.00019178,2]
[330388928,1719341440225,-500.0,0.00019178,2]
[330388930,1719341440235,-500.0,0.00019178,2]
[330388932,1719341440246,-686.36,0.00019178,2]
[330388934,1719341440257,-500.0,0.00019178,2]
[330388936,1719341440267,-810.61,0.00019178,2]
[330388938,1719341440281,-1109.27,0.00019178,2]
[330388940,1719341440296,-6152.43,0.00019178,2]
[330388942,1719341440307,-500.0,0.00019178,2]
[330388945,1719341440317,-729.53,0.00019178,2]
[330388948,1719341440326,-500.0,0.00019178,2]
[330388951,1719341440337,-956.23,0.00019178,2]
[330388954,1719341440347,-2377.05,0.00019178,2]
[330388957,1719341440357,-736.08,0.00019178,2]
[330388960,1719341440367,-500.0,0.00019178,2]
[330388963,1719341440377,-711.78,0.00019178,2]
[330388965,1719341440389,-1457.74,0.00019178,2]
[330388968,1719341440400,-500.0,0.00019178,2]
[330388969,1719341440410,-368.66415222,0.00019178,2]
[330388971,1719341440419,-670.57,0.00019178,2]
[330388973,1719341440430,-1287.44,0.00019178,2]
[330388975,1719341440440,-1237.94,0.00019178,2]
[330388977,1719341440450,-500.0,0.00019178,2]
[330388979,1719341440460,-500.0,0.00019178,2]
[330388981,1719341440470,-23588.31,0.00019178,2]
[330388983,1719341440480,-500.0,0.00019178,2]
[330388985,1719341440490,-694.34,0.00019178,2]
[330388987,1719341440500,-500.0,0.00019178,2]
[330388989,1719341440510,-500.0,0.00019178,2]
[330388991,1719341440520,-647.88,0.00019178,2]
[330388993,1719341440537,-500.0,0.00019178,2]